bitfinex/quotes_ETHUSD_20260109
["timestamp","ask_amount","ask_price","bid_price","bid_amount"]
[1767994300467,0.60962018,3091.2,3091.0,2.37232354]
[1767994300649,0.255,3091.6,3091.4,1.50770336]
[1767994301029,0.255,3091.6,3090.6,0.00080496]
[1767994301030,0.00080432,3092.2,3091.7,1.50770336]
[1767994301575,0.00080432,3092.2,3091.5,3.23465596]
[1767994301576,0.86370649,3092.3,3091.8,0.0008044]
[1767994301916,0.86370649,3092.3,3091.9,1.507704]
[1767994302122,4.09757526,3092.3,3091.9,1.507704]
[1767994302321,0.91209665,3092.1,3091.6,0.0008056]
[1767994303250,0.91209665,3091.9,3091.6,0.0008056]
[1767994304022,1.16709665,3091.9,3091.6,0.0008056]
[1767994305749,4.40142828,3091.9,3091.6,0.0008056]
[1767994305943,0.91209665,3091.8,3091.6,0.0008056]
[1767994306752,0.91209665,3091.8,3090.6,0.00080496]
[1767994306928,0.91209665,3091.6,3090.6,0.00080496]
[1767994307830,0.91209665,3091.4,3090.6,0.00080496]
[1767994308029,0.254,3091.3,3090.6,0.00080496]
[1767994308256,1.16609665,3091.3,3090.6,0.00080496]
[1767994308443,0.254,3091.3,3090.6,0.00080496]
[1767994308656,0.92633514,3091.3,3090.6,0.00080496]
[1767994309632,4.16130681,3091.3,3090.6,0.00080496]
[1767994310445,3.96130681,3091.3,3090.6,0.00080496]
[1767994310832,2.08068251,3091.7,3090.6,0.00080496]
[1767994311032,0.99367336,3091.7,3090.6,0.00080496]
[1767994311636,3.23457109,3091.6,3090.6,0.00080496]
[1767994311831,3.23457109,3091.6,3090.6,0.92333332]
[1767994313056,6.46923294,3091.6,3090.6,0.92333332]
[1767994313248,0.74629063,3091.5,3090.6,0.92333332]
[1767994314064,3.98098395,3091.5,3090.6,0.92333332]
[1767994314267,3.23469332,3091.5,3090.6,0.92333332]
[1767994314662,0.99367336,3091.4,3090.6,0.00080496]
[1767994316069,3.23488499,3091.3,3090.6,0.00080496]
[1767994317767,0.99367336,3091.2,3090.6,0.00080496]
[1767994318538,0.99367336,3091.2,3090.9,0.001]
[1767994319293,0.99367336,3092.9,3091.8,0.00080448]
[1767994319483,0.04210595,3092.2,3091.8,0.00080448]
[1767994319663,0.04210595,3092.5,3091.8,0.00080448]
[1767994319853,0.29610595,3092.8,3091.8,0.00080448]
[1767994320053,0.04210595,3092.2,3091.8,0.00080448]
[1767994321937,0.04291163,3092.0,3091.3,0.02057011]
[1767994322137,0.00080568,3092.0,3091.3,0.02057011]
[1767994325585,0.97682958,3092.0,3091.3,0.02057011]
[1767994325948,0.9760239,3091.8,3091.3,0.02057011]
[1767994326149,0.42102812,3091.7,3091.3,0.02057011]
[1767994326342,0.254,3091.6,3091.3,0.02057011]
[1767994327153,0.254,3091.6,3090.6,0.00080496]
[1767994327154,1.25708143,3091.6,3090.6,0.00080496]
[1767994327354,0.9760239,3091.5,3090.6,0.00080496]
[1767994328082,4.21080425,3091.4,3090.6,0.00080496]
[1767994328297,0.42108043,3091.3,3090.6,0.00080496]
[1767994329404,1.39710433,3091.3,3090.6,0.00080496]
[1767994330097,4.63204044,3091.3,3090.9,0.001]
[1767994331363,7.86697655,3091.3,3090.9,0.001]
[1767994331574,1.01812985,3091.2,3090.9,0.001]
[1767994331786,2.02093215,3091.1,3090.9,0.001]
[1767994332406,5.25612372,3091.1,3090.9,0.001]
[1767994335077,0.9760239,3091.0,3090.9,0.001]
[1767994335684,0.9760239,3091.0,3090.6,0.00080496]
[1767994336120,1.01812985,3091.0,3090.6,0.00080496]
[1767994336328,1.82936602,3090.9,3090.6,0.00080496]
[1767994336623,0.85334212,3090.9,3090.6,0.00080496]
[1767994337012,0.04210595,3091.0,3090.6,0.00080496]
[1767994337585,3.27732734,3091.0,3090.6,0.00080496]
[1767994339114,6.51254873,3091.0,3090.6,0.00080496]
[1767994339438,4.25353815,3090.8,3090.6,0.00080496]
[1767994339620,0.9760239,3090.7,3090.6,0.00080496]
[1767994339910,1.72491855,3090.7,3090.6,0.00080496]
[1767994340697,1.72491855,3090.7,3090.3,0.00083576]
[1767994340889,0.254,3090.6,3090.3,0.00083576]
[1767994343035,3.48970975,3090.6,3090.3,0.00083576]
[1767994344534,4.46573365,3090.6,3090.3,0.00083576]
[1767994344833,0.44657337,3090.5,3090.3,0.00083576]
[1767994352227,0.254,3090.6,3090.3,0.00083576]
[1767994358195,3.48964432,3090.6,3090.3,0.00083576]
[1767994358630,0.254,3090.6,3090.3,0.00083576]
[1767994359630,0.29610595,3090.6,3090.3,0.00083576]
[1767994362927,0.254,3090.6,3090.3,0.00083576]
[1767994363703,0.69831884,3090.6,3090.3,0.00083576]
[1767994364853,0.254,3090.6,3090.3,0.00083576]
[1767994365326,1.1656581,3090.6,3090.3,0.00083576]
[1767994367446,0.9116581,3090.5,3090.3,0.00083576]
[1767994368846,0.29610595,3090.6,3090.3,0.00083576]
[1767994369050,0.44433252,3090.5,3090.3,0.00083576]
[1767994369252,1.34763274,3090.5,3090.3,0.00083576]
[1767994370256,0.94540617,3090.4,3089.6,0.96460678]
[1767994370552,0.94540617,3090.2,3089.6,0.00080536]
[1767994370756,1.15730022,3090.1,3089.6,0.00080536]
[1767994371342,0.254,3090.1,3089.6,0.00080536]
[1767994374738,0.94540617,3090.0,3089.6,0.00080536]
[1767994376030,0.04210595,3090.0,3089.6,0.00080536]
[1767994376230,0.48986563,3090.0,3089.6,0.96460678]
[1767994377551,0.48986563,3090.0,3089.9,0.001]
[1767994377953,0.94540617,3090.4,3089.9,0.001]
[1767994377954,0.00083576,3090.7,3090.0,0.96380142]
[1767994378154,3.4904209,3090.7,3090.0,0.94322899]
[1767994378650,4.39372112,3090.7,3090.0,0.94322899]
[1767994378966,0.94540617,3090.6,3089.9,0.001]
[1767994379141,0.94540617,3090.4,3089.9,0.001]
[1767994379963,4.139232,3090.3,3089.9,0.001]
[1767994380172,0.004,3090.2,3089.9,0.001]
[1767994380335,0.94940617,3090.2,3089.1,4.20099024]
[1767994380540,0.90410558,3090.0,3089.1,4.20099024]
[1767994380736,0.90410558,3090.0,3089.2,0.96380142]
[1767994381439,0.00080536,3090.0,3089.2,0.96380142]
[1767994381764,0.00080536,3090.0,3089.1,7.39184306]
[1767994381765,3.23518858,3091.1,3090.0,0.96380142]
[1767994381938,3.48936957,3090.9,3090.0,4.20000747]
[1767994382137,0.254,3090.9,3090.2,0.96380142]
[1767994382372,0.00080496,3091.0,3090.2,0.96380142]
[1767994383869,0.00080496,3091.0,3090.6,0.9143125]
[1767994384076,0.00080496,3091.0,3090.7,4.14982549]
[1767994384277,0.00080496,3091.0,3090.8,0.9143125]
[1767994384440,0.254,3091.2,3090.9,0.41498255]
[1767994384640,3.27857847,3091.7,3091.0,0.9143125]
[1767994384641,0.002,3091.7,3091.0,0.9143125]
[1767994385062,0.002,3091.7,3090.9,0.41498255]
[1767994385372,3.23647152,3091.7,3090.9,0.41498255]
[1767994385979,7.39586845,3091.7,3090.9,0.41498255]
[1767994386156,7.39586845,3091.7,3090.8,0.9143125]
[1767994386496,4.16139693,3091.7,3090.8,0.9143125]
[1767994388362,0.92692541,3091.7,3090.8,4.14970748]
[1767994388560,4.16140117,3091.7,3090.8,0.9143125]
[1767994388768,4.16140117,3091.7,3090.9,0.41497952]
[1767994389374,0.002,3091.2,3090.9,0.41497952]
[1767994391146,0.002,3091.2,3090.8,0.9143125]
[1767994391360,0.92692541,3091.2,3090.6,0.00080504]
[1767994394689,0.92492541,3090.8,3090.3,0.00083659]
[1767994395391,0.96703136,3090.7,3090.3,0.00083659]
[1767994396090,0.04210595,3090.7,3090.3,0.00083659]
[1767994396588,0.254,3090.8,3090.3,0.00083659]
[1767994397294,3.5295219,3090.8,3090.3,0.00083659]
[1767994397480,4.30277925,3090.8,3090.3,0.00083659]
[1767994398391,0.04210595,3090.6,3090.3,0.00083659]
[1767994403118,3.27773951,3090.6,3090.3,0.00083659]
[1767994403715,0.04210595,3090.6,3090.3,0.00083659]
[1767994407123,3.52958825,3090.8,3090.3,0.00083659]
[1767994407421,4.30285374,3090.8,3090.3,0.00083659]
[1767994407623,1.0252655,3090.8,3090.3,0.91514909]
[1767994407796,3.23535714,3090.9,3090.3,0.91514909]
[1767994408000,0.254,3090.8,3090.3,0.00083659]
[1767994408510,3.48946266,3090.8,3090.3,0.00083659]
[1767994408696,3.53156861,3090.8,3090.3,0.00083659]
[1767994408896,4.30504483,3090.8,3090.3,0.00083659]
[1767994409329,0.96703136,3090.6,3089.6,4.15171808]
[1767994409703,0.96703136,3090.6,3089.7,0.9143125]
[1767994411231,0.96703136,3090.4,3089.6,0.00080544]
[1767994411533,0.96703136,3090.4,3089.0,0.91511714]
[1767994411534,0.96703136,3089.9,3089.0,0.91511714]
[1767994411747,0.96703136,3089.7,3089.0,0.00080464]
[1767994412047,0.00080464,3089.4,3088.7,0.0008064]
[1767994414427,0.00080464,3089.4,3088.7,0.91845075]
[1767994414723,0.254,3089.3,3088.7,0.0008064]
[1767994415845,3.49100335,3089.3,3088.7,0.0008064]
[1767994416201,0.99087436,3089.2,3088.7,0.0008064]
[1767994417535,3.23718882,3089.1,3088.7,0.0008064]
[1767994417806,4.27016913,3089.1,3088.7,0.0008064]
[1767994418133,0.99087436,3089.0,3088.7,0.0008064]
[1767994418361,1.03298031,3088.3,3087.5,0.91844947]
[1767994418543,1.03298031,3088.3,3086.5,0.39786867]
[1767994418544,0.99087436,3088.1,3086.9,0.25236802]
[1767994418709,0.00083908,3087.6,3087.1,3.2391869]
[1767994418909,0.00083908,3087.6,3087.3,3.23902066]
[1767994419540,0.00083908,3087.6,3087.2,3.59059922]
[1767994421245,0.00083908,3087.6,3087.2,6.82978035]
[1767994424134,0.00083908,3087.6,3087.5,0.001]
[1767994431069,0.00080512,3087.9,3087.5,0.001]
[1767994431935,0.99907401,3087.9,3087.5,0.001]
[1767994432169,0.99826889,3087.8,3087.2,0.00083991]
[1767994432456,0.99826889,3087.6,3087.2,0.00083991]
[1767994435125,0.99826889,3087.5,3087.2,0.00083991]
[1767994435354,0.9962689,3087.5,3087.2,0.00083991]
[1767994439060,0.002,3087.3,3087.2,0.00083991]
[1767994441042,0.002,3087.6,3087.2,0.00083991]
[1767994441043,1.00026889,3087.6,3087.2,0.00083991]
[1767994441441,0.002,3087.6,3087.2,0.00083991]
[1767994442367,1.00026889,3087.6,3087.2,0.00083991]
[1767994442665,0.99826889,3087.5,3087.2,0.00083991]
[1767994442868,0.99826889,3087.3,3086.5,0.00180608]
[1767994443240,0.99826889,3087.3,3086.5,3.24164635]
[1767994443469,0.93875062,3087.1,3086.5,0.00180608]
[1767994446252,0.93875062,3087.0,3086.5,0.00180608]
[1767994447280,0.93875062,3087.3,3086.5,0.00180608]
[1767994447492,1.19375062,3087.2,3086.5,3.24172184]
[1767994447680,0.93875062,3087.1,3086.5,3.24172184]
[1767994448657,0.255,3087.2,3086.5,3.8898954]
[1767994449194,1.19375062,3087.2,3086.5,3.8898954]
[1767994449885,1.19375062,3087.2,3086.5,0.64997964]
[1767994450072,0.93875062,3087.1,3086.5,0.00180608]
[1767994450989,0.93875062,3087.1,3086.6,3.23981079]
[1767994451291,0.93875062,3087.1,3086.5,0.00180608]
[1767994451684,0.93875062,3087.1,3086.5,3.24167129]
[1767994452058,0.93875062,3087.1,3086.8,0.001]
[1767994452285,1.19375062,3087.2,3086.8,0.001]
[1767994452472,0.93875062,3087.5,3086.8,0.001]
[1767994452677,0.93875062,3087.4,3086.8,0.001]
[1767994453082,1.19659053,3087.6,3086.8,0.001]
[1767994453964,1.19659053,3087.6,3086.8,6.48020176]
[1767994456790,1.19659053,3087.6,3086.8,3.24060088]
[1767994457565,1.19659053,3087.6,3086.8,3.51892599]
[1767994457900,1.19659053,3087.6,3086.8,7.13591947]
[1767994458084,0.93875062,3087.5,3086.8,3.89631859]
[1767994459094,0.93875062,3087.5,3086.8,7.13591947]
[1767994459404,0.93875062,3087.5,3086.8,3.89631859]
[1767994460193,0.93875062,3087.5,3086.8,7.13591947]
[1767994461292,0.93875062,3087.5,3086.9,0.71359195]
[1767994461590,0.25783991,3087.6,3086.9,0.99191706]
[1767994461765,0.00283991,3087.6,3086.9,0.99191706]
[1767994461966,0.94159053,3087.6,3086.9,0.99191706]
[1767994463094,0.94159053,3087.6,3087.0,3.23939099]
[1767994464398,0.002,3087.2,3087.0,3.23939099]
[1767994464608,0.002,3087.5,3087.0,4.02432114]
[1767994469016,0.94075062,3087.5,3087.0,4.02432114]
[1767994470284,0.002,3087.5,3087.0,4.30264625]
[1767994470484,0.002,3087.5,3087.0,9.97299691]
[1767994470709,0.002,3087.5,3087.0,4.02432114]
[1767994470918,0.94075062,3087.5,3087.0,4.02432114]
[1767994471120,0.002,3087.5,3087.0,4.02432114]
[1767994471425,0.002,3087.5,3087.1,0.99729969]
[1767994471928,0.94075062,3087.5,3087.1,0.99729969]
[1767994472219,0.94075062,3087.5,3086.8,0.001]
[1767994472428,0.93875062,3087.3,3086.8,0.001]
[1767994472606,0.93875062,3087.1,3086.8,0.001]
[1767994473699,0.96911544,3086.9,3086.8,0.001]
[1767994474026,0.96911544,3086.9,3086.2,0.001]
[1767994474196,0.96911544,3086.7,3086.2,0.001]
[1767994475224,0.96911544,3086.6,3086.2,0.001]
[1767994475725,0.96911544,3086.4,3086.2,0.001]
[1767994476020,0.96711545,3086.4,3086.2,0.001]
[1767994476795,0.96711545,3086.4,3085.9,0.001]
[1767994476999,0.96911544,3086.2,3085.9,0.001]
[1767994477691,0.96911544,3086.0,3085.9,0.001]
[1767994479522,0.96911544,3086.0,3085.6,0.00080632]
[1767994479832,0.96911544,3085.8,3084.9,3.52363884]
[1767994480026,0.96911544,3085.8,3085.0,3.24143858]
[1767994480226,0.96911544,3085.8,3085.1,5.95248184]
[1767994480440,0.96992176,3086.0,3085.1,9.19384778]
[1767994480605,0.96992176,3086.0,3085.2,0.28213118]
[1767994480805,3.24124999,3086.0,3085.2,0.28213118]
[1767994481033,4.21036543,3086.0,3085.2,0.28213118]
[1767994481340,4.21036543,3086.0,3085.2,1.32843013]
[1767994481841,0.96911544,3085.9,3085.2,1.04629895]
[1767994482206,0.96911544,3085.9,3085.1,9.19385648]
[1767994482740,0.96911544,3085.9,3085.1,5.95248184]
[1767994483037,0.96711545,3085.9,3085.1,5.95248184]
[1767994484141,4.2076636,3085.9,3085.1,9.19381274]
[1767994484644,0.96911544,3085.8,3085.1,5.95248184]
[1767994484807,0.96911544,3085.8,3085.1,7.02428841]
[1767994485143,0.96911544,3085.8,3085.1,1.07180657]
[1767994485435,0.96911544,3085.8,3084.7,3.24177493]
[1767994485735,0.96911544,3085.8,3084.7,3.49677493]
[1767994485926,0.96911544,3085.8,3084.8,0.28413117]
[1767994486128,0.96911544,3085.6,3084.8,3.52582896]
[1767994486642,0.96911544,3085.6,3084.7,0.255]
[1767994487342,0.96911544,3085.6,3084.5,5.95448183]
[1767994487343,0.96911544,3085.0,3084.4,0.00080712]
[1767994487639,0.95991178,3085.0,3084.4,0.00080712]
[1767994487822,0.96911544,3085.3,3084.4,0.00080712]
[1767994488222,0.04210595,3085.6,3084.4,0.00080712]
[1767994488223,0.96911544,3085.1,3084.4,0.00080712]
[1767994489436,0.92510611,3085.0,3084.4,0.00080712]
[1767994489612,6.76513909,3085.1,3083.6,0.29333483]
[1767994489613,0.92510611,3084.7,3083.6,0.255]
[1767994489819,0.92510611,3084.4,3083.5,0.00080496]
[1767994490511,0.92510611,3084.1,3083.5,0.00080496]
[1767994490717,0.92510611,3084.0,3083.5,0.00080496]
[1767994490942,0.92510611,3083.8,3083.0,0.001]
[1767994491154,0.92510611,3083.6,3083.0,0.001]
[1767994492353,0.92510611,3083.4,3083.0,0.001]
[1767994492539,0.92510611,3083.2,3083.0,0.001]
[1767994492745,0.92510611,3083.0,3082.5,0.00080608]
[1767994493924,0.7419282,3083.3,3082.5,0.94354655]
[1767994493925,0.000804,3083.3,3082.5,0.94354655]
[1767994494523,0.000804,3083.3,3082.5,0.00080608]
[1767994494826,0.98466548,3083.3,3082.5,3.56934921]
[1767994495140,0.255,3083.7,3082.9,0.00080408]
[1767994495729,0.00080496,3083.9,3082.9,0.98337632]
[1767994496238,0.98386148,3083.8,3082.9,0.00080408]
[1767994496438,1.75634921,3083.8,3082.9,0.00080408]
[1767994496755,0.00080496,3083.9,3082.9,0.98337632]
[1767994497746,0.98466644,3083.9,3082.9,0.00080408]
[1767994498759,0.98466644,3083.9,3082.9,0.98337632]
[1767994499125,0.98386148,3083.8,3082.9,0.00080408]
[1767994500627,0.98386148,3083.6,3082.9,0.00080408]
[1767994500824,0.98386148,3083.4,3082.9,0.00080408]
[1767994501041,0.255,3083.5,3082.9,0.00080408]
[1767994501840,0.00080496,3083.9,3082.9,0.98337632]
[1767994502043,0.255,3084.3,3083.5,0.00080504]
[1767994502548,1.68715041,3084.3,3083.5,0.00080504]
[1767994504470,0.97393213,3084.2,3083.5,0.00080504]
[1767994512576,0.97393213,3084.2,3083.5,5.68436586]
[1767994514689,0.97393213,3084.2,3083.5,8.92739141]
[1767994515184,0.97393213,3084.2,3083.5,9.87280084]
[1767994515687,0.97393213,3084.2,3083.8,0.001]
[1767994516019,0.002,3083.9,3083.8,0.001]
[1767994518526,3.2442261,3084.4,3083.9,0.94540943]
[1767994518527,0.002,3084.4,3083.9,0.94540943]
[1767994518725,0.255,3084.6,3084.1,5.68356082]
[1767994521231,0.97393213,3084.5,3083.8,0.001]
[1767994521527,0.255,3084.6,3083.9,3.24263212]
[1767994521824,1.22893213,3084.6,3083.9,3.24263212]
[1767994522323,1.22893213,3084.6,3083.9,4.55417792]
[1767994522686,1.22893213,3084.6,3083.9,1.3115458]
[1767994522893,0.97393213,3084.5,3083.9,1.3115458]
[1767994523225,0.97393213,3084.5,3083.9,4.5541764]
[1767994523521,0.97393213,3084.5,3083.9,1.3115458]
[1767994523920,0.97393213,3084.5,3083.9,4.55411498]
[1767994524632,0.00080712,3084.8,3084.2,5.68356082]
[1767994524801,0.97393213,3085.8,3084.6,5.68356082]
[1767994524991,0.97393213,3085.3,3084.4,0.0008072]
[1767994525190,0.97393213,3085.1,3084.4,0.0008072]
[1767994525792,0.97393213,3085.3,3084.4,0.94621663]
[1767994525992,0.97393213,3085.3,3084.4,2.28313636]
[1767994527327,4.21513658,3085.3,3084.4,5.52520484]
[1767994527624,0.97393213,3085.2,3084.4,5.52520484]
[1767994527793,0.97393213,3085.2,3084.4,4.57979541]
[1767994527990,0.255,3085.4,3084.4,6.48504821]
[1767994528328,4.47000659,3085.4,3084.5,0.94540943]
[1767994528620,0.97393213,3085.3,3084.5,0.94540943]
[1767994529326,0.002,3085.0,3084.6,3.24191143]
[1767994529512,0.002,3085.0,3084.6,3.98503617]
[1767994529829,0.002,3085.0,3084.6,0.74312474]
[1767994530727,0.97593213,3085.0,3084.4,0.0018072]
[1767994531089,0.97393213,3084.8,3084.4,0.0018072]
[1767994531289,0.97393213,3084.6,3083.8,0.001]
[1767994533730,0.9173123,3084.5,3083.8,0.001]
[1767994533930,0.9173123,3084.4,3083.8,0.001]
[1767994540426,0.9173123,3084.6,3083.8,0.001]
[1767994540603,0.9173123,3084.6,3083.8,0.93633635]
[1767994541714,0.9173123,3084.6,3084.1,0.001]
[1767994542499,4.15925599,3084.6,3084.1,0.001]
[1767994542834,4.89943665,3084.6,3084.1,0.001]
[1767994543855,1.65749296,3084.6,3084.1,0.001]
[1767994544641,0.9173123,3084.5,3084.1,0.001]
[1767994547801,0.9173123,3084.4,3084.1,0.001]
[1767994549515,0.96566973,3084.5,3084.1,0.001]
[1767994551140,0.96566973,3084.4,3084.1,0.001]
[1767994552441,0.96566973,3084.3,3084.1,0.001]
[1767994553138,4.06117502,3084.4,3084.1,0.001]
[1767994553440,4.31617502,3084.4,3084.1,0.001]
[1767994553845,1.07399463,3084.4,3084.1,0.001]
[1767994554043,0.255,3084.4,3084.1,0.001]
[1767994554549,0.255,3084.4,3084.1,0.95305282]
[1767994555458,0.255,3084.4,3084.1,0.001]
[1767994560272,3.49713803,3084.4,3084.1,0.001]
[1767994560419,0.96566973,3084.3,3084.1,0.001]
[1767994562155,0.255,3084.4,3084.1,0.001]
[1767994563256,3.49719146,3084.4,3084.1,0.001]
[1767994563754,4.26767958,3084.4,3084.1,0.001]
[1767994568057,1.02548812,3084.4,3084.1,0.001]
[1767994568228,0.255,3084.4,3084.1,0.001]
[1767994569659,3.49714201,3084.4,3084.1,0.001]
[1767994574035,0.255,3084.4,3084.1,0.001]
[1767994574227,4.44598246,3084.4,3084.1,0.001]
[1767994574429,0.94884469,3083.8,3082.9,0.00080408]
[1767994574664,0.00080504,3083.9,3082.5,0.00080608]
[1767994574665,0.94884469,3083.6,3082.5,0.00080608]
[1767994574863,0.94884469,3083.2,3082.5,0.00080608]
[1767994575039,0.00080408,3083.3,3082.5,1.0123763]
[1767994575235,0.94964877,3083.3,3082.5,1.0123763]
[1767994575430,0.94964877,3083.3,3082.5,0.00080608]
[1767994575835,0.00080408,3083.3,3082.5,0.32531109]
[1767994576060,0.94884469,3083.2,3082.5,0.00080608]
[1767994576265,0.00080408,3083.3,3082.5,1.0123763]
[1767994576669,0.00080408,3083.3,3082.6,1.01157022]
[1767994578568,0.00080408,3083.3,3082.6,4.2555659]
[1767994578875,0.00080408,3083.3,3082.7,1.01157022]
[1767994580578,0.94884469,3083.2,3082.5,3.24487547]
[1767994580736,0.94884469,3083.2,3082.6,3.66958394]
[1767994581137,0.00080408,3083.3,3082.7,1.01157022]
[1767994582051,0.94964877,3083.3,3082.6,0.42564457]
[1767994584486,0.94884469,3083.2,3082.6,0.42564457]
[1767994584797,4.19224355,3083.2,3082.5,0.00080608]
[1767994586079,0.00080408,3083.3,3082.5,1.0123763]
[1767994586684,0.00080408,3083.3,3082.6,4.25558501]
[1767994586854,0.00080408,3083.3,3082.6,1.01157022]
[1767994588147,0.94964877,3083.3,3082.9,0.001]
[1767994588385,0.002,3083.0,3082.9,0.001]
[1767994589465,0.95084469,3083.0,3082.9,0.001]
[1767994590250,0.95084469,3083.0,3082.5,0.00080608]
[1767994593304,0.002,3083.0,3082.5,0.00080608]
[1767994600104,0.002,3083.0,3082.5,0.98780751]
[1767994600897,0.002,3083.0,3082.5,4.23191166]
[1767994601281,0.002,3083.0,3082.6,0.98700143]
[1767994602000,0.002,3083.0,3082.8,0.001]
[1767994602226,0.96278393,3083.2,3082.8,5.68918154]
[1767994602373,0.00280408,3083.3,3083.0,0.98700143]
[1767994602572,3.49796488,3083.6,3083.1,0.98700143]
[1767994602573,0.255,3083.6,3083.1,0.98700143]
[1767994602872,0.00080504,3083.9,3083.2,0.98700143]
[1767994603191,0.00080504,3083.9,3083.4,0.98700143]
[1767994603397,0.00080504,3083.9,3083.3,1.68001973]
[1767994604806,0.00080504,3083.9,3083.4,0.98700143]
[1767994605007,0.00080504,3083.9,3083.3,0.6930183]
[1767994605183,0.96358897,3083.9,3083.3,0.6930183]
[1767994606012,0.96358897,3083.9,3083.4,0.98700143]
[1767994606013,0.00080504,3083.9,3083.4,0.98700143]
[1767994606203,0.00080504,3083.9,3083.5,1.1550034]
[1767994606577,0.00080504,3083.9,3083.5,0.16800197]
[1767994607011,0.00080504,3083.9,3083.3,1.68001973]
[1767994613515,0.002,3083.6,3083.3,1.68001973]
[1767994615020,0.002,3083.6,3083.3,0.98700143]
[1767994617702,0.94364269,3083.5,3083.2,3.2433293]
[1767994617916,0.002,3083.6,3083.2,3.2433293]
[1767994618425,0.002,3083.6,3083.1,4.26639263]
[1767994621916,0.002,3083.6,3083.2,1.02295087]
[1767994622121,0.002,3083.6,3083.3,0.42663926]
[1767994622526,0.002,3083.6,3083.3,1.44959013]
[1767994623724,0.002,3083.6,3083.4,0.96212591]
[1767994627093,0.00280504,3083.9,3083.6,0.96212591]
[1767994629605,0.00280504,3083.9,3083.4,0.96212591]
[1767994629930,0.00280504,3083.9,3083.5,0.96212591]
[1767994637146,0.002,3083.6,3083.5,0.96212591]
[1767994637442,0.97577568,3083.9,3083.4,1.03202816]
[1767994640646,0.00280504,3083.9,3083.5,0.96212591]
[1767994648671,0.002,3083.6,3083.5,0.96212591]
[1767994648874,0.00280504,3083.9,3083.5,0.19941541]
[1767994649042,0.99417131,3083.9,3083.4,1.03202816]
[1767994650575,0.00280504,3083.9,3083.4,1.99415407]
[1767994654146,0.00280504,3083.9,3083.5,0.99561823]
[1767994657283,0.00280504,3083.9,3083.0,0.99561823]
[1767994657492,1.00639774,3083.9,3083.0,0.99561823]
[1767994657710,1.00487476,3083.7,3082.8,0.001]
[1767994658007,1.00487476,3083.5,3082.8,0.001]
[1767994658353,1.00487476,3083.5,3082.8,3.2447867]
[1767994659594,0.00280504,3083.9,3083.2,0.99561823]
[1767994660289,0.00280504,3083.9,3083.5,0.02057278]
[1767994660290,0.002,3083.6,3083.5,0.02057278]
[1767994660473,0.00280504,3083.9,3083.5,0.02057278]
[1767994669398,0.00280504,3083.9,3083.5,1.08664153]
[1767994671897,0.002,3083.6,3083.5,1.08664153]
[1767994672094,0.00280504,3083.9,3083.5,1.08664153]
[1767994672412,0.00280504,3083.9,3083.5,0.02057278]
[1767994674374,0.95464516,3083.9,3083.5,0.02057278]
[1767994675004,4.19729844,3083.9,3083.5,0.02057278]
[1767994675897,0.95464516,3083.9,3083.5,0.02057278]
[1767994676993,0.00280504,3083.9,3083.5,0.02057278]
[1767994680911,0.00280504,3083.9,3083.4,1.06606875]
[1767994681907,0.00280504,3083.9,3083.2,0.001]
[1767994681908,0.96037044,3083.8,3083.2,0.001]
[1767994683494,0.002,3083.6,3083.2,0.001]
[1767994684960,0.96635553,3083.6,3082.9,0.00080416]
[1767994685150,0.96635553,3083.6,3082.9,1.07659113]
[1767994685418,0.77070707,3083.5,3082.9,1.07659113]
[1767994686983,3.24317312,3083.4,3082.9,1.07659113]
[1767994687808,4.01382937,3083.5,3082.9,1.07659113]
[1767994689232,7.25695167,3083.5,3082.9,1.07659113]
[1767994689592,7.25695167,3083.5,3082.9,0.00080416]
[1767994689593,8.22604953,3083.5,3082.9,0.00080416]
[1767994689914,0.82280495,3083.4,3082.9,0.00080416]
[1767994690801,0.82280495,3083.4,3082.9,1.07659113]
[1767994691040,4.0659849,3083.4,3082.9,1.07659113]
[1767994691212,3.24317995,3083.4,3082.9,1.07659113]
[1767994691833,6.4863599,3083.4,3082.9,0.00080416]
[1767994692897,0.97259861,3083.3,3082.5,1.07659305]
[1767994693098,0.64944015,3083.3,3082.5,1.07659305]
[1767994693721,3.89274333,3083.3,3082.5,1.07659305]
[1767994694032,7.13604651,3083.3,3082.5,1.07659305]
[1767994694859,8.10958565,3083.3,3082.5,1.07659305]
[1767994695002,0.81095857,3083.2,3082.5,1.07659305]
[1767994695203,3.24348869,3083.1,3082.5,1.07659305]
[1767994696715,4.05438729,3083.2,3082.5,1.07659305]
[1767994699837,0.81095857,3083.2,3082.5,1.07659305]
[1767994700003,0.97777437,3083.2,3082.5,0.00080608]
[1767994700528,3.24609057,3083.3,3082.5,1.07659305]
[1767994701110,0.00280416,3083.3,3082.5,1.07659305]
[1767994705256,0.00280416,3083.3,3082.6,1.07578697]
[1767994707335,0.98607861,3083.3,3082.6,1.07578697]
[1767994708258,7.47079317,3083.2,3082.5,0.00080608]
[1767994708463,0.74735973,3083.1,3082.5,0.00080608]
[1767994708969,0.74735973,3083.1,3082.8,0.001]
[1767994709170,0.002,3083.0,3082.8,0.001]
[1767994713465,0.00080608,3082.9,3082.5,1.07259828]
[1767994717562,0.00080608,3082.9,3082.6,1.08784579]
[1767994718087,0.00080608,3082.9,3082.8,1.08784579]
[1767994719268,0.00080608,3082.9,3082.6,1.08784579]
[1767994721068,0.00080608,3082.9,3082.8,0.001]
[1767994727084,0.00280416,3083.3,3082.9,1.08784579]
[1767994727868,0.00280416,3083.3,3082.8,0.001]
[1767994728200,0.00280416,3083.3,3082.8,1.08884579]
[1767994728697,0.00280416,3083.3,3082.8,1.52211671]
[1767994728888,0.00280416,3083.3,3082.9,1.08784579]
[1767994732179,0.00280416,3083.3,3082.8,0.001]
[1767994733098,0.002,3083.0,3082.8,0.001]
[1767994733472,0.002,3083.0,3082.8,1.06601367]
[1767994733673,0.00280416,3083.3,3082.8,1.4970038]
[1767994736005,0.00280416,3083.3,3082.9,1.06501367]
[1767994736571,0.00280504,3083.9,3083.2,1.06501367]
[1767994736774,3.24546549,3083.9,3083.2,1.06501367]
[1767994738508,0.00280504,3083.9,3083.2,1.06501367]
[1767994738877,0.00280504,3083.9,3083.3,1.06501367]
[1767994739077,0.00280504,3083.9,3083.5,1.06501367]
[1767994739390,0.00280504,3083.9,3083.3,1.06501367]
[1767994740484,0.98880328,3083.8,3083.1,7.00775909]
[1767994740806,3.24550742,3083.9,3083.2,1.06501367]
[1767994741410,0.98848919,3083.8,3083.1,7.45361542]
[1767994742976,3.24550742,3083.9,3083.1,7.45361542]
[1767994743177,0.98756934,3083.8,3083.1,0.70085633]
[1767994743418,0.98756934,3083.8,3082.9,0.25580424]
[1767994743907,0.98756934,3083.8,3082.9,1.27122646]
[1767994744307,0.98756934,3083.8,3082.9,4.5149104]